fUSD/lending_fUSD_20260321
["ID","MTS","AMOUNT","RATE_DAILY","PERIOD"]
[408671922,1774101940804,-162.574728,0.00039726,120]
[408671923,1774101940841,-403.753668,0.00039726,120]
[408671924,1774101940880,-162.574728,0.00039726,120]
[408671925,1774101940919,-151.0,0.00039726,120]
[408671926,1774101940959,-936.003437,0.00039726,120]
[408671927,1774101940997,-403.753668,0.00039726,120]
[408671928,1774101941035,-162.574728,0.00039726,120]
[408671929,1774101941073,-936.003437,0.00039726,120]
[408671930,1774101941110,-151.0,0.00039726,120]
[408671931,1774101941149,-936.003437,0.00039726,120]
[408671932,1774101941189,-151.0,0.00039726,120]
[408671933,1774101941228,-403.753668,0.00039726,120]
[408671934,1774101941269,-151.0,0.00039726,120]
[408671935,1774101941310,-162.574728,0.00039726,120]
[408671936,1774101941351,-936.003437,0.00039726,120]
[408671937,1774101941393,-151.0,0.00039726,120]
[408671938,1774101941435,-403.753668,0.00039726,120]
[408671939,1774101941476,-151.0,0.00039726,120]
[408671940,1774101941518,-162.574728,0.00039726,120]
[408671941,1774101941559,-151.0,0.00039726,120]
[408671942,1774101941599,-403.753668,0.00039726,120]
[408671943,1774101941645,-162.574728,0.00039726,120]
[408671944,1774101941697,-151.0,0.00039726,120]
[408671945,1774101941737,-162.574728,0.00039726,120]
[408671946,1774101941775,-403.753668,0.00039726,120]
[408671947,1774101941815,-151.0,0.00039726,120]
[408671948,1774101941854,-403.753668,0.00039726,120]
[408671949,1774101941892,-162.574728,0.00039726,120]
[408671950,1774101941930,-403.753668,0.00039726,120]
[408671951,1774101941968,-151.0,0.00039726,120]
[408671952,1774101942005,-162.574728,0.00039726,120]
[408671953,1774101942044,-403.753668,0.00039726,120]
[408671954,1774101942083,-254.614753,0.00039726,120]
[408671955,1774101942123,-162.574728,0.00039726,120]
[408671956,1774101942163,-403.753668,0.00039726,120]
[408671957,1774101942203,-162.574728,0.00039726,120]
[408671958,1774101942242,-403.753668,0.00039726,120]
[408671959,1774101942282,-403.753668,0.00039726,120]
[408671960,1774101942321,-162.574728,0.00039726,120]
[408671961,1774101942365,-403.753668,0.00039726,120]
[408671962,1774101942404,-162.574728,0.00039726,120]
[408671963,1774101942443,-403.753668,0.00039726,120]
[408671964,1774101942481,-162.574728,0.00039726,120]
[408671965,1774101942520,-162.574728,0.00039726,120]
[408671966,1774101942561,-151.0,0.00039726,120]
[408671967,1774101942600,-151.0,0.00039726,120]
[408671968,1774101942640,-338.008441,0.00039726,30]
[408671969,1774101942679,-151.0,0.00039726,120]
[408671970,1774101942716,-338.008441,0.00039726,30]
[408671971,1774101942753,-151.0,0.00039726,120]
[408671972,1774101942791,-338.008441,0.00039726,30]
[408671973,1774101942830,-151.0,0.00039726,120]
[408671974,1774101942869,-338.008441,0.00039726,30]
[408671975,1774101942908,-151.0,0.00039726,120]
[408671976,1774101942945,-151.0,0.00039726,120]
[408671977,1774101942982,-151.0,0.00039726,120]
[408671978,1774101943019,-151.0,0.00039726,120]
[408671979,1774101943055,-338.008441,0.00039726,30]
[408671980,1774101943091,-151.0,0.00039726,120]
[408671981,1774101943234,-151.0,0.00039726,120]
[408671982,1774101943272,-338.008441,0.00039726,30]
[408671983,1774101943309,-151.0,0.00039726,120]
[408671984,1774101943346,-151.0,0.00039726,120]
[408671985,1774101943382,-338.008441,0.00039726,30]
[408671986,1774101943420,-151.0,0.00039726,120]
[408671987,1774101943457,-151.0,0.00039726,120]
[408671988,1774101943494,-338.008441,0.00039726,30]
[408671989,1774101943532,-151.0,0.00039726,120]
[408671990,1774101943570,-151.0,0.00039726,120]
[408671991,1774101943612,-151.0,0.00039726,120]
[408671992,1774101943652,-338.008441,0.00039726,30]
[408671993,1774101943690,-151.0,0.00039726,120]
[408671994,1774101943728,-338.008441,0.00039726,30]
[408671995,1774101943766,-151.0,0.00039726,120]
[408671996,1774101943803,-338.008441,0.00039726,30]
[408671997,1774101943841,-151.0,0.00039726,120]
[408671998,1774101943881,-338.008441,0.00039726,30]
[408671999,1774101943921,-151.0,0.00039726,120]
[408672000,1774101943964,-151.0,0.00039726,120]
[408672001,1774101944003,-151.0,0.00039726,120]
[408672002,1774101944045,-151.0,0.00039726,120]
[408672003,1774101944083,-338.008441,0.00039726,30]
[408672004,1774101944124,-151.0,0.00039726,120]
[408672005,1774101944163,-271.327529,0.00039726,120]
[408672006,1774101944202,-338.008441,0.00039726,30]
[408672007,1774101944239,-338.008441,0.00039726,30]
[408672008,1774101944277,-338.008441,0.00039726,30]
[408672009,1774101944315,-157.087991,0.00039726,120]
[408672010,1774101944352,-3615.065818,0.00039726,120]
[408672011,1774101944388,-3615.065818,0.00039726,120]
[408672012,1774101944423,-3615.065818,0.00039726,120]
[408672013,1774101944460,-3615.065818,0.00039726,120]
[408672014,1774101944498,-3615.065818,0.00039726,120]
[408672015,1774101944536,-3615.065818,0.00039726,120]
[408672016,1774101944574,-151.0,0.00039726,120]
[408672017,1774101944613,-3615.065818,0.00039726,120]
[408672018,1774101944653,-151.0,0.00039726,120]
[408672019,1774101944691,-3615.065818,0.00039726,120]
[408672020,1774101944729,-3615.065818,0.00039726,120]
[408672021,1774101944767,-151.0,0.00039726,120]
[408672022,1774101944804,-3615.065818,0.00039726,120]
[408672023,1774101944841,-151.0,0.00039726,120]
[408672024,1774101944880,-463.10256239,0.00039869,120]
[408672025,1774101944921,-421.08620057,0.00039873,60]
[408672026,1774101944960,-1008.76045792,0.00039894,30]
[408672027,1774101944999,-252.8368346,0.000399,120]
[408672028,1774101945038,-1168.209247,0.000399,120]
[408672029,1774101945075,-583.9890334,0.000399,120]
[408672030,1774101945112,-628.2542054,0.0003999,30]
[408672031,1774101945150,-500.0,0.00039999,120]
[408672032,1774101945187,-500.0,0.00039999,120]
[408672033,1774101945225,-500.0,0.00039999,120]
[408672034,1774101945263,-1739.78,0.0004,60]
[408672035,1774101945302,-261.65645092,0.0004,120]
[408672036,1774101945339,-2698.0,0.0004,120]
[408672037,1774101945376,-172485.78831999,0.0004,60]
[408672038,1774101945413,-670719.01620856,0.0004,120]
[408672039,1774101945451,-999.0,0.0004,120]
[408672040,1774101945490,-5000.0,0.0004,120]
[408672041,1774101945532,-5000.0,0.0004,120]
[408672042,1774101945572,-5000.0,0.0004,120]
[408672043,1774101945614,-1760.3,0.0004,120]
[408672044,1774101945653,-3000.0,0.0004,30]
[408672045,1774101945693,-3270.0,0.0004,30]
[408672046,1774101945859,-3000.0,0.0004,120]
[408672047,1774101945902,-167.68310015,0.0004,120]
[408672048,1774101945947,-2051.12185311,0.0004,120]
[408672049,1774101945985,-2940.79147489,0.0004,120]
[408672050,1774101946023,-151.0,0.0004,120]
[408672051,1774101946063,-151.0,0.0004,120]
[408672052,1774101946101,-151.0,0.0004,120]
[408672053,1774101946141,-151.0,0.0004,120]
[408672054,1774101946179,-151.0,0.0004,120]
[408672055,1774101946218,-151.0,0.0004,120]
[408672056,1774101946257,-151.0,0.0004,60]
[408672057,1774101946299,-151.0,0.0004,60]
[408672058,1774101946339,-151.0,0.0004,120]
[408672059,1774101946380,-151.0,0.0004,120]
[408672060,1774101946421,-151.0,0.0004,120]
[408672061,1774101946462,-151.0,0.0004,120]
[408672062,1774101946502,-216.579335,0.0004,120]
[408672063,1774101946541,-187.546411,0.0004,120]
[408672064,1774101946582,-151.0,0.0004,120]
[408672065,1774101946626,-187.546411,0.0004,120]
[408672066,1774101946668,-151.0,0.0004,120]
[408672067,1774101946711,-187.546411,0.0004,120]
[408672068,1774101946751,-151.0,0.0004,120]
[408672069,1774101946791,-187.546409,0.0004,120]
[408672070,1774101946831,-154.284845,0.0004,120]
[408672071,1774101946868,-151.0,0.0004,120]
[408672072,1774101946907,-151.0,0.0004,120]
[408672073,1774101946945,-151.0,0.0004,120]
[408672074,1774101946982,-151.0,0.0004,120]
[408672075,1774101947023,-199.942615,0.0004,30]
[408672076,1774101947064,-199.942615,0.0004,30]
[408672077,1774101947104,-199.942615,0.0004,30]
[408672078,1774101947146,-199.942615,0.0004,30]
[408672079,1774101947192,-151.0,0.0004,120]
[408672080,1774101947238,-151.0,0.0004,35]
[408672081,1774101947279,-197.279837,0.0004,120]
[408672082,1774101947319,-151.0,0.0004,90]
[408672083,1774101947360,-151.140966,0.0004,120]
[408672084,1774101947406,-151.0,0.0004,90]
[408672085,1774101947447,-151.0,0.0004,120]
[408672086,1774101947487,-151.0,0.0004,120]
[408672087,1774101947529,-151.0,0.0004,120]
[408672088,1774101947570,-151.0,0.0004,120]
[408672089,1774101947613,-400.0,0.0004,120]
[408672090,1774101947654,-400.0,0.0004,120]
[408672091,1774101947695,-400.0,0.0004,120]
[408672092,1774101947735,-400.0,0.0004,120]
[408672093,1774101947778,-151.0,0.0004,120]
[408672094,1774101947819,-151.0,0.0004,120]
[408672095,1774101947859,-151.0,0.0004,120]
[408672096,1774101947898,-151.0,0.0004,120]
[408672097,1774101947935,-151.0,0.0004,120]
[408672098,1774101947971,-151.0,0.0004,120]
[408672099,1774101948008,-405.28413,0.0004,120]
[408672100,1774101948044,-405.28413,0.0004,120]
[408672101,1774101948081,-405.28413,0.0004,120]
[408672102,1774101948129,-405.28413,0.0004,120]
[408672103,1774101948174,-979.16666667,0.0004,120]
[408672104,1774101948214,-413.221572,0.0004,120]
[408672105,1774101948256,-413.221572,0.0004,120]
[408672106,1774101948299,-413.221572,0.0004,120]
[408672107,1774101948340,-413.221572,0.0004,120]
[408672108,1774101948383,-482.821629,0.0004,120]
[408672109,1774101948574,-482.821629,0.0004,120]
[408672110,1774101948622,-396.201938,0.0004,120]
[408672111,1774101948663,-482.821629,0.0004,120]
[408672112,1774101948704,-223.906409,0.0004,120]
[408672113,1774101948745,-396.201938,0.0004,120]
[408672114,1774101948784,-482.821625,0.0004,120]
[408672115,1774101948823,-153.738914,0.0004,120]
[408672116,1774101948864,-223.906409,0.0004,120]
[408672117,1774101948905,-396.201938,0.0004,120]
[408672118,1774101948946,-153.738914,0.0004,120]
[408672119,1774101948986,-223.906409,0.0004,120]
[408672120,1774101949026,-396.201938,0.0004,120]
[408672121,1774101949066,-180.246469,0.0004,120]
[408672122,1774101949108,-223.906417,0.0004,120]
[408672123,1774101949148,-153.738914,0.0004,120]
[408672124,1774101949188,-180.246469,0.0004,120]
[408672125,1774101949232,-151.0,0.0004,120]
[408672126,1774101949273,-194.50721,0.0004,120]
[408672127,1774101949312,-153.738918,0.0004,120]
[408672128,1774101949350,-180.246469,0.0004,120]
[408672129,1774101949388,-194.50721,0.0004,120]
[408672130,1774101949428,-180.246462,0.0004,120]
[408672131,1774101949471,-194.50721,0.0004,120]
[408672132,1774101949513,-194.50720991,0.0004,120]
[408672133,1774101949551,-151.0,0.0004,120]
[408672134,1774101949587,-151.0,0.0004,120]
[408672135,1774101949625,-757.218793,0.0004,120]
[408672136,1774101949662,-151.0,0.0004,120]
[408672137,1774101949700,-757.218793,0.0004,120]
[408672138,1774101949737,-151.0,0.0004,120]
[408672139,1774101949775,-757.218793,0.0004,120]
[408672140,1774101949813,-757.218797,0.0004,120]
[408672141,1774101949852,-151.0,0.0004,120]
[408672142,1774101949892,-1035.724301,0.0004,120]
[408672143,1774101949933,-1035.724301,0.0004,120]
[408672144,1774101949972,-1167.592143,0.0004,120]
[408672145,1774101950010,-1035.724301,0.0004,120]
[408672146,1774101950049,-1167.592143,0.0004,120]
[408672147,1774101950088,-1035.724301,0.0004,120]
[408672148,1774101950126,-1167.592143,0.0004,120]
[408672149,1774101950164,-1167.592149,0.0004,120]
[408672150,1774101950202,-204.147693,0.0004,120]
[408672151,1774101950240,-204.147693,0.0004,120]
[408672152,1774101950277,-204.147693,0.0004,120]
[408672153,1774101950314,-204.147696,0.0004,120]
[408672154,1774101950351,-289.837523,0.0004,120]
[408672155,1774101950388,-224.623124,0.0004,120]
[408672156,1774101950426,-224.623124,0.0004,120]
[408672157,1774101950463,-202.843652,0.0004,120]
[408672158,1774101950503,-224.623124,0.0004,120]
[408672159,1774101950542,-202.843652,0.0004,120]
[408672160,1774101950580,-151.0,0.0004,120]
[408672161,1774101950619,-151.0,0.0004,120]
[408672162,1774101950657,-202.843652,0.0004,120]
[408672163,1774101950695,-224.623125,0.0004,120]
[408672164,1774101950732,-151.0,0.0004,120]
[408672165,1774101950769,-151.0,0.0004,120]
[408672166,1774101950806,-202.843659,0.0004,120]
[408672167,1774101950846,-151.0,0.0004,120]
[408672168,1774101950884,-151.0,0.0004,120]
[408672169,1774101950922,-311.100933,0.0004,120]
[408672170,1774101951065,-151.0,0.0004,120]
[408672171,1774101951106,-151.0,0.0004,120]
[408672172,1774101951145,-311.100933,0.0004,120]
[408672173,1774101951183,-151.0,0.0004,120]
[408672174,1774101951222,-183.981758,0.0004,120]
[408672175,1774101951261,-311.100933,0.0004,120]
[408672176,1774101951302,-311.100927,0.0004,120]
[408672177,1774101951342,-151.0,0.0004,120]
[408672178,1774101951384,-223.479519,0.0004,120]
[408672179,1774101951425,-223.479519,0.0004,120]
[408672180,1774101951465,-223.479519,0.0004,120]
[408672181,1774101951506,-223.479519,0.0004,120]
[408672182,1774101951544,-539.118874,0.0004,120]
[408672183,1774101951583,-539.118874,0.0004,120]
[408672184,1774101951624,-151.0,0.0004,120]
[408672185,1774101951665,-539.118874,0.0004,120]
[408672186,1774101951707,-412.504701,0.0004,120]
[408672187,1774101951747,-151.0,0.0004,120]
[408672188,1774101951787,-539.118883,0.0004,120]
[408672189,1774101951826,-412.504701,0.0004,120]
[408672190,1774101951866,-412.504701,0.0004,120]
[408672191,1774101951905,-151.0,0.0004,120]
[408672192,1774101951946,-412.504702,0.0004,120]
[408672193,1774101951986,-151.0,0.0004,120]
[408672194,1774101952025,-151.0,0.0004,120]
[408672195,1774101952064,-151.0,0.0004,120]
[408672196,1774101952103,-233.246247,0.0004,120]
[408672197,1774101952145,-802.270766,0.0004,60]
[408672198,1774101952184,-802.270766,0.0004,60]
[408672199,1774101952224,-802.270766,0.0004,60]
[408672200,1774101952263,-151.0,0.0004,120]
[408672201,1774101952301,-517.129264,0.0004,120]
[408672202,1774101952339,-802.270758,0.0004,60]
[408672203,1774101952378,-517.129264,0.0004,120]
[408672204,1774101952417,-517.129264,0.0004,120]
[408672205,1774101952457,-517.129271,0.0004,120]
[408672206,1774101952497,-151.0,0.0004,120]
[408672207,1774101952535,-338.563966,0.0004,120]
[408672208,1774101952572,-338.563966,0.0004,120]
[408672209,1774101952613,-338.563966,0.0004,120]
[408672210,1774101952651,-338.563975,0.0004,120]
[408672211,1774101952691,-151.0,0.0004,120]
[408672212,1774101952735,-151.0,0.0004,120]
[408672213,1774101952773,-151.0,0.0004,120]
[408672214,1774101952811,-223.909728,0.0004,120]
[408672215,1774101952849,-177.481839,0.0004,120]
[408672216,1774101952887,-177.481839,0.0004,120]
[408672217,1774101952926,-177.481839,0.0004,120]
[408672218,1774101952963,-177.481835,0.0004,120]
[408672219,1774101953000,-151.0,0.0004,120]
[408672220,1774101953039,-151.0,0.0004,120]
[408672221,1774101953077,-253.77287,0.0004,120]
[408672222,1774101953117,-151.0,0.0004,60]
[408672223,1774101953155,-250.499571,0.0004,120]
[408672224,1774101953194,-151.0,0.0004,60]
[408672225,1774101953232,-253.77287,0.0004,120]
[408672226,1774101953271,-253.77287,0.0004,120]
[408672227,1774101953310,-253.772872,0.0004,120]
[408672228,1774101953348,-151.0,0.0004,120]
[408672229,1774101953486,-450.0,0.0004,120]
[408672230,1774101953527,-151.0,0.0004,120]
[408672231,1774101953566,-450.0,0.0004,120]
[408672232,1774101953608,-450.0,0.0004,120]
[408672233,1774101953650,-582.188844,0.0004,120]
[408672234,1774101953689,-237.590352,0.0004,120]
[408672235,1774101953726,-450.0,0.0004,120]
[408672236,1774101953764,-237.590352,0.0004,120]
[408672237,1774101953802,-582.188844,0.0004,120]
[408672238,1774101953840,-237.590352,0.0004,120]
[408672239,1774101953878,-582.188844,0.0004,120]
[408672240,1774101953918,-237.590342,0.0004,120]
[408672241,1774101953958,-1599.986014,0.0004,120]
[408672242,1774101953996,-582.188834,0.0004,120]
[408672243,1774101954035,-364.911812,0.0004,120]
[408672244,1774101954077,-1599.986014,0.0004,120]
[408672245,1774101954117,-364.911812,0.0004,120]
[408672246,1774101954157,-1599.986014,0.0004,120]
[408672247,1774101954197,-364.911812,0.0004,120]
[408672248,1774101954236,-1599.986022,0.0004,120]
[408672249,1774101954275,-364.911807,0.0004,120]
[408672250,1774101954314,-151.0,0.0004,120]
[408672251,1774101954353,-430.445585,0.0004,120]
[408672252,1774101954391,-399.95701,0.0004,120]
[408672253,1774101954431,-164.413686,0.0004,120]
[408672254,1774101954469,-430.445585,0.0004,120]
[408672255,1774101954509,-399.95701,0.0004,120]
[408672256,1774101954547,-164.413686,0.0004,120]
[408672257,1774101954587,-430.445585,0.0004,120]
[408672258,1774101954634,-399.95701,0.0004,120]
[408672259,1774101954679,-164.413686,0.0004,120]
[408672260,1774101954718,-430.445592,0.0004,120]
[408672261,1774101954759,-399.957005,0.0004,120]
[408672262,1774101954803,-164.413692,0.0004,120]
[408672263,1774101954848,-151.0,0.0004,120]
[408672264,1774101954894,-151.0,0.0004,120]
[408672265,1774101954939,-151.0,0.0004,120]
[408672266,1774101954979,-787.99332,0.0004,120]
[408672267,1774101955019,-787.99332,0.0004,120]
[408672268,1774101955058,-787.99332,0.0004,120]
[408672269,1774101955097,-787.993324,0.0004,120]
[408672270,1774101955136,-151.0,0.0004,120]
[408672271,1774101955174,-193.173407,0.0004,120]
[408672272,1774101955212,-193.173407,0.0004,120]
[408672273,1774101955251,-151.0,0.0004,120]
[408672274,1774101955292,-193.173407,0.0004,120]
[408672275,1774101955334,-151.0,0.0004,120]
[408672276,1774101955377,-193.173404,0.0004,120]
[408672277,1774101955419,-161.485312,0.0004,120]
[408672278,1774101955461,-161.485312,0.0004,120]
[408672279,1774101955503,-151.0,0.0004,30]
[408672280,1774101955545,-161.485312,0.0004,120]
[408672281,1774101955585,-151.0,0.0004,30]
[408672282,1774101955626,-151.0,0.0004,120]
[408672283,1774101955668,-161.485305,0.0004,120]
[408672284,1774101955711,-151.0,0.0004,120]
[408672285,1774101955751,-151.0,0.0004,30]
[408672286,1774101955888,-151.0,0.0004,120]
[408672287,1774101955931,-151.0,0.0004,120]
[408672288,1774101955972,-151.0,0.0004,120]
[408672289,1774101956013,-151.0,0.0004,120]
[408672290,1774101956052,-1654.379702,0.0004,120]
[408672291,1774101956091,-1654.379702,0.0004,120]
[408672292,1774101956132,-1654.379702,0.0004,120]
[408672293,1774101956173,-1654.379694,0.0004,120]
[408672294,1774101956213,-159.744239,0.0004,60]
[408672295,1774101956253,-159.744239,0.0004,60]
[408672296,1774101956294,-159.744239,0.0004,60]
[408672297,1774101956335,-159.744243,0.0004,60]
[408672298,1774101956376,-151.0,0.0004,120]
[408672299,1774101956417,-151.0,0.0004,120]
[408672300,1774101956459,-1225.405595,0.0004,120]
[408672301,1774101956503,-1225.405595,0.0004,120]
[408672302,1774101956545,-1225.405595,0.0004,120]
[408672303,1774101956586,-1225.405599,0.0004,120]
[408672304,1774101956628,-151.0,0.0004,120]
[408672305,1774101956671,-256.262626,0.0004,120]
[408672306,1774101956714,-1999.983563,0.0004,120]
[408672307,1774101956756,-256.262626,0.0004,120]
[408672308,1774101956796,-1999.983563,0.0004,120]
[408672309,1774101956834,-1999.983563,0.0004,120]
[408672310,1774101956873,-256.262626,0.0004,120]
[408672311,1774101956912,-151.0,0.0004,120]
[408672312,1774101956951,-256.552091,0.0004,120]
[408672313,1774101957012,-1999.983571,0.0004,120]
[408672314,1774101957079,-398.798322,0.0004,120]
[408672315,1774101957147,-256.262619,0.0004,120]
[408672316,1774101957215,-151.0,0.0004,120]
[408672317,1774101957284,-256.552091,0.0004,120]
[408672318,1774101957347,-398.798322,0.0004,120]
[408672319,1774101957404,-256.552091,0.0004,120]
[408672320,1774101957464,-398.798322,0.0004,120]
[408672321,1774101957523,-256.552086,0.0004,120]
[408672322,1774101957580,-398.798321,0.0004,120]
[408672323,1774101957637,-232.08,0.0004,120]
[408672324,1774101957696,-1322.526276,0.0004,120]
[408672325,1774101957755,-1322.526276,0.0004,120]
[408672326,1774101957814,-174.200245,0.0004,120]
[408672327,1774101957871,-1322.526276,0.0004,120]
[408672328,1774101957931,-278.448379,0.0004,120]
[408672329,1774101957990,-1322.526283,0.0004,120]
[408672330,1774101958050,-278.448379,0.0004,120]
[408672331,1774101958112,-151.0,0.0004,120]
[408672332,1774101958169,-278.448379,0.0004,120]
[408672333,1774101958225,-203.017528,0.0004,120]
[408672334,1774101958284,-278.448373,0.0004,120]
[408672335,1774101958344,-151.0,0.0004,120]
[408672336,1774101958405,-203.017528,0.0004,120]
[408672337,1774101958465,-203.017528,0.0004,120]
[408672338,1774101958521,-151.0,0.0004,120]
[408672339,1774101958579,-203.017528,0.0004,120]
[408672340,1774101958778,-614.614497,0.0004,120]
[408672341,1774101958832,-1182.937232,0.0004,120]
[408672342,1774101958872,-431.359315,0.0004,120]
[408672343,1774101958911,-614.614497,0.0004,120]
[408672344,1774101958949,-1182.937232,0.0004,120]
[408672345,1774101958987,-151.0,0.0004,120]
[408672346,1774101959023,-431.359315,0.0004,120]
[408672347,1774101959062,-1182.937232,0.0004,120]
[408672348,1774101959099,-261.40998,0.0004,120]
[408672349,1774101959138,-614.614497,0.0004,120]
[408672350,1774101959176,-431.359315,0.0004,120]
[408672351,1774101959214,-614.614501,0.0004,120]
[408672352,1774101959253,-1182.937231,0.0004,120]
[408672353,1774101959291,-431.359315,0.0004,120]
[408672354,1774101959330,-298.751774,0.0004,120]
[408672355,1774101959370,-1158.862358,0.0004,120]
[408672356,1774101959411,-1158.862358,0.0004,120]
[408672357,1774101959451,-1158.862358,0.0004,120]
[408672358,1774101959492,-1158.862359,0.0004,120]
[408672359,1774101959531,-151.0,0.0004,120]
[408672360,1774101959570,-151.0,0.0004,120]
[408672361,1774101959612,-151.0,0.0004,120]
[408672362,1774101959652,-282.39352,0.0004,120]
[408672363,1774101959691,-222.243984,0.0004,120]
[408672364,1774101959731,-222.243984,0.0004,120]
[408672365,1774101959769,-282.39352,0.0004,120]
[408672366,1774101959807,-207.433087,0.0004,120]
[408672367,1774101959846,-222.243984,0.0004,120]
[408672368,1774101959887,-282.39352,0.0004,120]
[408672369,1774101959925,-151.0,0.0004,120]
[408672370,1774101959964,-207.433087,0.0004,120]
[408672371,1774101960002,-268.344802,0.0004,120]
[408672372,1774101960041,-222.243978,0.0004,120]
[408672373,1774101960081,-282.393527,0.0004,120]
[408672374,1774101960121,-207.433087,0.0004,120]
[408672375,1774101960160,-268.344802,0.0004,120]
[408672376,1774101960199,-151.0,0.0004,120]
[408672377,1774101960237,-151.0,0.0004,120]
[408672378,1774101960279,-207.433085,0.0004,120]
[408672379,1774101960318,-268.344802,0.0004,120]
[408672380,1774101960358,-151.0,0.0004,120]
[408672381,1774101960399,-151.0,0.0004,120]
[408672382,1774101960441,-4210.256044,0.0004,120]
[408672383,1774101960481,-268.34481,0.0004,120]
[408672384,1774101960522,-151.0,0.0004,120]
[408672385,1774101960563,-151.0,0.0004,120]
[408672386,1774101960604,-616.863787,0.0004,120]
[408672387,1774101960648,-196.887045,0.0004,120]
[408672388,1774101960689,-4210.256044,0.0004,120]
[408672389,1774101960730,-616.863787,0.0004,120]
[408672390,1774101960769,-950.210683,0.0004,120]
[408672391,1774101960807,-151.0,0.0004,120]
[408672392,1774101960845,-4210.256044,0.0004,120]
[408672393,1774101960882,-616.863787,0.0004,120]
[408672394,1774101960920,-950.210683,0.0004,120]
[408672395,1774101960957,-151.0,0.0004,120]
[408672396,1774101960993,-151.0,0.0004,120]
[408672397,1774101961031,-4210.256047,0.0004,120]
[408672398,1774101961068,-950.210683,0.0004,120]
[408672399,1774101961105,-151.0,0.0004,120]
[408672400,1774101961143,-616.863788,0.0004,120]
[408672401,1774101961183,-950.210692,0.0004,120]
[408672402,1774101961222,-272.109437,0.0004,120]
[408672403,1774101961262,-151.0,0.0004,120]
[408672404,1774101961301,-151.0,0.0004,120]
[408672405,1774101961340,-731.476025,0.0004,120]
[408672406,1774101961384,-731.476025,0.0004,120]
[408672407,1774101961425,-731.476025,0.0004,120]
[408672408,1774101961466,-731.476031,0.0004,120]
[408672409,1774101961508,-151.0,0.0004,120]
[408672410,1774101961551,-492.813516,0.0004,120]
[408672411,1774101961594,-492.813516,0.0004,120]
[408672412,1774101961641,-492.813516,0.0004,120]
[408672413,1774101961687,-492.813521,0.0004,120]
[408672414,1774101961730,-151.0,0.0004,120]
[408672415,1774101961886,-151.0,0.0004,120]
[408672416,1774101961928,-552.740209,0.0004,120]
[408672417,1774101961966,-151.411074,0.0004,120]
[408672418,1774101962005,-727.832047,0.0004,120]
[408672419,1774101962045,-552.740209,0.0004,120]
[408672420,1774101962084,-151.411074,0.0004,120]
[408672421,1774101962124,-727.832047,0.0004,120]